fUST/lending_fUST_20251115
["ID","MTS","AMOUNT","RATE_DAILY","PERIOD"]
[394003839,1763172680780,-629.45,0.0005315,120]
[394003840,1763172680790,-500.0,0.0005315,120]
[394003841,1763172680799,-500.0,0.0005315,120]
[394003842,1763172680808,-500.0,0.0005315,120]
[394003843,1763172680817,-500.0,0.0005315,120]
[394003844,1763172680827,-500.0,0.0005315,120]
[394003845,1763172680837,-532.97,0.0005315,120]
[394003846,1763172680846,-527.42,0.0005315,120]
[394003847,1763172680855,-517.42,0.0005315,120]
[394003848,1763172680864,-1390.62,0.0005315,120]
[394003849,1763172680874,-505.07454052,0.0005315,120]
[394003850,1763172680883,-503.22958123,0.0005315,120]
[394003851,1763172680892,-500.0,0.0005315,120]
[394003852,1763172680903,-500.0,0.0005315,120]
[394003853,1763172680911,-500.0,0.0005315,120]
[394003854,1763172680921,-500.0,0.0005315,120]
[394003855,1763172680930,-500.0,0.0005315,120]
[394003856,1763172680939,-1276.71,0.0005315,120]
[394003857,1763172680949,-500.0,0.0005315,120]
[394003858,1763172680958,-948.59,0.0005315,120]
[394003859,1763172680967,-507.72,0.0005315,120]
[394003860,1763172680977,-500.0,0.0005315,120]
[394003861,1763172680986,-500.0,0.0005315,120]
[394003862,1763172680995,-500.0,0.0005315,120]
[394003863,1763172681005,-500.0,0.0005315,120]
[394003864,1763172681015,-502.15101939,0.0005315,120]
[394003865,1763172681024,-500.0,0.0005315,120]
[394003866,1763172681034,-747.42,0.0005315,120]
[394003867,1763172681043,-566.74,0.0005315,120]
[394003868,1763172681052,-500.0,0.0005315,120]
[394003869,1763172681062,-500.0,0.0005315,120]
[394003870,1763172681071,-515.63135091,0.0005315,120]
[394003871,1763172681080,-1791.91,0.0005315,120]
[394003872,1763172681090,-520.27172415,0.0005315,120]
[394003873,1763172681100,-500.0,0.0005315,120]
[394003874,1763172681109,-500.0,0.0005315,120]
[394003875,1763172681118,-500.0,0.0005315,120]
[394003876,1763172681128,-500.0,0.0005315,120]
[394003877,1763172681137,-500.0,0.0005315,120]
[394003878,1763172681147,-1017.14,0.0005315,120]
[394003879,1763172681156,-500.0,0.0005315,120]
[394003880,1763172681166,-500.0,0.0005315,120]
[394003881,1763172681176,-936.67,0.0005315,120]
[394003882,1763172681186,-500.0,0.0005315,120]
[394003883,1763172681195,-500.0,0.0005315,120]
[394003884,1763172681205,-500.0,0.0005315,120]
[394003885,1763172681214,-500.0,0.0005315,120]
[394003886,1763172681223,-500.0,0.0005315,120]
[394003887,1763172681234,-572.61,0.0005315,120]
[394003888,1763172681243,-500.0,0.0005315,120]
[394003889,1763172681253,-500.0,0.0005315,120]
[394003890,1763172681262,-502.12821491,0.0005315,120]
[394003891,1763172681272,-2708.03,0.0005315,120]
[394003892,1763172681281,-500.0,0.0005315,120]
[394003893,1763172681291,-500.0,0.0005315,120]
[394003894,1763172681301,-500.0,0.0005315,120]
[394003895,1763172681311,-500.0,0.0005315,120]
[394003896,1763172681320,-500.0,0.0005315,120]
[394003897,1763172681329,-500.0,0.0005315,120]
[394003898,1763172681338,-979.1,0.0005315,120]
[394003899,1763172681347,-500.0,0.0005315,120]
[394003900,1763172681356,-500.0,0.0005315,120]
[394003901,1763172681367,-500.0,0.0005315,120]
[394003902,1763172681376,-687.91,0.0005315,120]
[394003903,1763172681385,-502.41096537,0.0005315,120]
[394003904,1763172681394,-777.09,0.0005315,120]
[394003905,1763172681403,-500.0,0.0005315,120]
[394003906,1763172681417,-500.0,0.0005315,2]
[394003907,1763172681425,-1015.1,0.0005315,120]
[394003908,1763172681434,-500.0,0.0005315,120]
[394003909,1763172681443,-500.0,0.0005315,120]
[394003910,1763172681453,-500.0,0.0005315,120]
[394003911,1763172681463,-525.42,0.0005315,120]
[394003912,1763172681476,-500.0,0.0005315,120]
[394003913,1763172681485,-500.0,0.0005315,120]
[394003914,1763172681494,-533.64,0.0005315,120]
[394003915,1763172681504,-927.9,0.0005315,120]
[394003916,1763172681514,-500.0,0.0005315,120]
[394003917,1763172681523,-500.0,0.0005315,120]
[394003918,1763172681532,-500.0,0.0005315,120]
[394003919,1763172681543,-500.0,0.0005315,120]
[394003920,1763172681552,-502.81024055,0.0005315,120]
[394003921,1763172681562,-745.41,0.0005315,120]
[394003922,1763172681571,-500.0,0.0005315,120]
[394003923,1763172681581,-500.0,0.0005315,120]
[394003924,1763172681590,-503.15205836,0.0005315,120]
[394003925,1763172681600,-500.0,0.0005315,120]
[394003926,1763172681609,-1077.77,0.0005315,120]
[394003927,1763172681618,-500.0,0.0005315,120]
[394003928,1763172681627,-500.0,0.0005315,120]
[394003929,1763172681636,-500.0,0.0005315,120]
[394003930,1763172681647,-500.0,0.0005315,120]
[394003931,1763172681656,-500.0,0.0005315,120]
[394003932,1763172681664,-500.0,0.0005315,120]
[394003933,1763172681673,-624.67,0.0005315,120]
[394003934,1763172681683,-500.0,0.0005315,120]
[394003935,1763172681692,-551.58,0.0005315,120]
[394003936,1763172681701,-500.0,0.0005315,120]
[394003937,1763172681710,-1776.75,0.0005315,120]
[394003938,1763172681719,-500.0,0.0005315,120]
[394003939,1763172681728,-577.74,0.0005315,120]
[394003940,1763172681738,-521.77370103,0.0005315,7]
[394003941,1763172681747,-579.24233354,0.0005315,120]
[394003942,1763172681757,-958.77,0.0005315,120]
[394003943,1763172681766,-500.0,0.0005315,120]
[394003944,1763172681776,-500.0,0.0005315,120]
[394003945,1763172681784,-500.0,0.0005315,120]
[394003946,1763172681794,-4568.1,0.0005315,3]
[394003947,1763172681804,-500.0,0.0005315,120]
[394003948,1763172681813,-500.0,0.0005315,120]
[394003949,1763172681822,-500.0,0.0005315,120]
[394003950,1763172681834,-500.0,0.0005315,120]
[394003951,1763172681844,-500.0,0.0005315,120]
[394003952,1763172681853,-500.0,0.0005315,120]
[394003953,1763172681862,-500.0,0.0005315,120]
[394003954,1763172681871,-500.0,0.0005315,120]
[394003955,1763172681881,-648.67353078,0.0005315,120]
[394003956,1763172681890,-500.0,0.0005315,30]
[394003957,1763172681900,-1165.61,0.0005315,120]
[394003958,1763172681909,-694.38,0.0005315,120]
[394003959,1763172681918,-500.0,0.0005315,21]
[394003960,1763172681927,-849.34,0.0005315,120]
[394003961,1763172681936,-1012.59,0.0005315,120]
[394003962,1763172681945,-500.0,0.0005315,10]
[394003963,1763172681954,-505.63593619,0.0005315,120]
[394003964,1763172681963,-500.0,0.0005315,120]
[394003965,1763172681972,-1298.83,0.0005315,120]
[394003966,1763172681981,-647.88,0.0005315,120]
[394003967,1763172681990,-500.0,0.0005315,120]
[394003968,1763172681999,-1236.1,0.0005315,120]
[394003969,1763172682008,-500.0,0.0005315,120]
[394003970,1763172682017,-500.0,0.0005315,120]
[394003971,1763172682026,-617.48,0.0005315,120]
[394003972,1763172682036,-500.0,0.0005315,120]
[394003973,1763172682046,-500.0,0.0005315,120]
[394003974,1763172682055,-511.10986269,0.0005315,120]
[394003975,1763172682064,-500.0,0.0005315,120]
[394003976,1763172682075,-1133.68,0.0005315,120]
[394003977,1763172682084,-500.0,0.0005315,120]
[394003978,1763172682093,-500.0,0.0005315,120]
[394003979,1763172682103,-500.0,0.0005315,120]
[394003980,1763172682112,-1584.66,0.0005315,120]
[394003981,1763172682122,-504.18849905,0.0005315,120]
[394003982,1763172682131,-382.61867931,0.0005315,120]
[394003983,1763172682141,-500.0,0.0005315,120]
[394003984,1763172682151,-500.0,0.0005315,120]
[394003985,1763172682161,-500.0,0.0005315,120]
[394003986,1763172682170,-500.0,0.0005315,120]
[394003987,1763172682179,-500.0,0.0005315,120]
[394003988,1763172682189,-1059.33,0.0005315,120]
[394003989,1763172682198,-500.0,0.0005315,120]
[394003990,1763172682207,-500.0,0.0005315,120]
[394003991,1763172682216,-500.0,0.0005315,120]
[394003992,1763172682225,-500.0,0.0005315,120]
[394003993,1763172682234,-500.0,0.0005315,120]
[394003994,1763172682243,-1158.62,0.0005315,120]
[394003995,1763172682252,-151.0,0.0005315,120]
[394003996,1763172682262,-500.0,0.0005315,120]
[394003997,1763172682271,-1253.127483,0.0005315,120]
[394003998,1763172682381,-166.973417,0.0005315,120]
[394003999,1763172682390,-151.0,0.0005315,120]
[394004000,1763172682400,-1253.127483,0.0005315,120]
[394004001,1763172682409,-4088.64,0.0005315,120]
[394004002,1763172682417,-1253.127483,0.0005315,120]
[394004003,1763172682426,-500.0,0.0005315,120]
[394004004,1763172682435,-1253.127483,0.0005315,120]
[394004005,1763172682444,-520.56154464,0.0005315,120]
[394004006,1763172682453,-500.0,0.0005315,120]
[394004007,1763172682462,-500.0,0.0005315,120]
[394004008,1763172682473,-1137.07,0.0005315,120]
[394004009,1763172682483,-502.65162628,0.0005315,120]
[394004010,1763172682493,-151.0,0.0005315,30]
[394004011,1763172682502,-522.16,0.0005315,120]
[394004012,1763172682511,-652.53,0.0005315,120]
[394004013,1763172682522,-558.84211129,0.0005315,120]
[394004014,1763172682531,-500.0,0.0005315,120]
[394004015,1763172682540,-500.0,0.0005315,120]
[394004016,1763172682550,-777.42,0.0005315,120]
[394004017,1763172682559,-500.0,0.0005315,120]
[394004018,1763172682569,-500.0,0.0005315,120]
[394004019,1763172682578,-319.20670171,0.0005315,120]
[394004020,1763172682587,-500.0,0.0005315,120]
[394004021,1763172682596,-500.0,0.0005315,120]
[394004022,1763172682606,-500.0,0.0005315,120]
[394004023,1763172682615,-500.0,0.0005315,120]
[394004024,1763172682625,-502.13501772,0.0005315,120]
[394004025,1763172682634,-500.0,0.0005315,120]
[394004026,1763172682644,-2806.11,0.0005315,120]
[394004027,1763172682655,-500.0,0.0005315,120]
[394004028,1763172682664,-500.0,0.0005315,120]
[394004029,1763172682674,-500.0,0.0005315,120]
[394004030,1763172682685,-546.25,0.0005315,120]
[394004031,1763172682695,-823.53,0.0005315,120]
[394004032,1763172682705,-1022.54,0.0005315,120]
[394004033,1763172682714,-500.0,0.0005315,120]
[394004034,1763172682724,-1369.59,0.0005315,120]
[394004035,1763172682733,-500.0,0.0005315,120]
[394004036,1763172682743,-520.15,0.0005315,120]
[394004037,1763172682752,-500.0,0.0005315,120]
[394004038,1763172682762,-504.46,0.0005315,120]
[394004039,1763172682771,-500.0,0.0005315,120]
[394004040,1763172682781,-500.0,0.0005315,120]
[394004041,1763172682790,-664.41,0.0005315,120]
[394004042,1763172682799,-500.0,0.0005315,120]
[394004043,1763172682808,-500.0,0.0005315,120]
[394004044,1763172682817,-631.34,0.0005315,120]
[394004045,1763172682826,-500.0,0.0005315,120]
[394004046,1763172682835,-631.09805795,0.0005315,120]
[394004047,1763172682844,-500.0,0.0005315,120]
[394004048,1763172682852,-596.09,0.0005315,120]
[394004049,1763172682861,-500.0,0.0005315,120]
[394004050,1763172682870,-161.503181,0.0005315,120]
[394004051,1763172682879,-500.0,0.0005315,120]
[394004052,1763172682888,-1203.61,0.0005315,120]
[394004053,1763172682898,-500.0,0.0005315,120]
[394004054,1763172682909,-877.29,0.0005315,120]
[394004055,1763172682919,-500.0,0.0005315,120]
[394004056,1763172682928,-1000.0,0.0005315,2]
[394004057,1763172682937,-5000.0,0.000532,120]
[394004058,1763172682946,-600.0,0.00053349,2]
[394004059,1763172682955,-500.0,0.00053356,60]
[394004060,1763172682964,-413.0,0.00053392,120]
[394004061,1763172682973,-360.03,0.00053424,120]
[394004062,1763172682982,-500.0,0.00053424,120]
[394004063,1763172682991,-500.0,0.00053424,120]
[394004064,1763172682999,-500.0,0.00053424,120]
[394004065,1763172683009,-500.0,0.00053424,120]
[394004066,1763172683018,-500.0,0.00053424,120]
[394004067,1763172683028,-500.0,0.00053424,120]
[394004068,1763172683037,-500.0,0.00053424,120]
[394004069,1763172683046,-609.02,0.00053424,120]
[394004070,1763172683055,-500.0,0.00053424,120]
[394004071,1763172683065,-500.0,0.00053424,120]
[394004072,1763172683074,-500.0,0.00053424,120]
[394004073,1763172683084,-500.0,0.00053424,120]
[394004074,1763172683093,-500.0,0.00053424,120]
[394004075,1763172683103,-500.0,0.00053424,120]
[394004076,1763172683112,-500.0,0.00053424,120]
[394004077,1763172683121,-536.01859323,0.00053424,120]
[394004078,1763172683131,-533.55305266,0.00053424,30]
[394004079,1763172683140,-500.0,0.00053424,120]
[394004080,1763172683161,-649.89,0.00053424,120]
[394004081,1763172683177,-536.65,0.00053424,120]
[394004082,1763172683194,-500.0,0.00053424,120]
[394004083,1763172683212,-500.0,0.00053424,120]
[394004084,1763172683230,-500.0,0.00053424,120]
[394004085,1763172683247,-500.0,0.00053424,120]
[394004086,1763172683264,-500.0,0.00053424,120]
[394004087,1763172683278,-759.32,0.00053424,120]
[394004088,1763172683295,-500.0,0.00053424,120]
[394004089,1763172683313,-500.0,0.00053424,120]
[394004090,1763172683332,-554.45,0.00053424,120]
[394004091,1763172683345,-221.6,0.00053424,120]
[394004092,1763172683362,-629.47,0.00053424,120]
[394004093,1763172683376,-500.0,0.00053424,120]
[394004094,1763172683391,-500.0,0.00053424,120]
[394004095,1763172683405,-500.0,0.00053424,120]
[394004096,1763172683421,-500.0,0.00053424,120]
[394004097,1763172683435,-500.0,0.00053424,120]
[394004098,1763172683450,-505.66181552,0.00053424,120]
[394004099,1763172683465,-500.0,0.00053424,120]
[394004100,1763172683485,-500.0,0.00053424,120]
[394004101,1763172683499,-790.87,0.00053424,120]
[394004102,1763172683515,-582.92,0.00053424,120]
[394004103,1763172683530,-500.0,0.00053424,120]
[394004104,1763172683545,-500.0,0.00053424,120]
[394004105,1763172683560,-500.0,0.00053424,120]
[394004106,1763172683575,-500.0,0.00053424,120]
[394004107,1763172683590,-590.85,0.00053424,120]
[394004108,1763172683605,-500.0,0.00053424,120]
[394004109,1763172683619,-500.0,0.00053424,14]
[394004110,1763172683634,-503.92454228,0.00053424,120]
[394004111,1763172683649,-673.94,0.00053424,120]
[394004112,1763172683665,-500.0,0.00053424,120]
[394004113,1763172683679,-500.0,0.00053424,120]
[394004114,1763172683693,-500.0,0.00053424,120]
[394004115,1763172683707,-500.0,0.00053424,120]
[394004116,1763172683721,-1000.0,0.00053424,2]
[394004117,1763172683736,-544.93,0.00053424,120]
[394004118,1763172683750,-500.0,0.00053424,120]
[394004119,1763172683764,-500.0,0.00053424,120]
[394004120,1763172683778,-500.0,0.00053424,120]
[394004121,1763172683793,-500.0,0.00053424,120]
[394004122,1763172683808,-500.0,0.00053424,120]
[394004123,1763172683823,-500.0,0.00053424,120]
[394004124,1763172683837,-500.0,0.00053424,120]
[394004125,1763172683852,-571.3,0.00053424,120]
[394004126,1763172683866,-500.0,0.00053424,120]
[394004127,1763172683881,-536.61486313,0.00053424,120]
[394004128,1763172683896,-544.52047509,0.00053424,120]
[394004129,1763172683911,-1377.81,0.00053424,7]
[394004130,1763172683925,-503.74874675,0.00053424,120]
[394004131,1763172683940,-500.0,0.00053424,120]
[394004132,1763172683954,-618.7,0.00053424,120]
[394004133,1763172683969,-500.0,0.00053424,120]
[394004134,1763172683984,-522.91884992,0.00053424,120]
[394004135,1763172684000,-503.13530975,0.00053424,120]
[394004136,1763172684015,-500.0,0.00053424,120]
[394004137,1763172684030,-655.84,0.00053424,120]
[394004138,1763172684045,-500.0,0.00053424,120]
[394004139,1763172684060,-500.0,0.00053424,120]
[394004140,1763172684074,-500.0,0.00053424,120]
[394004141,1763172684089,-500.0,0.00053424,120]
[394004142,1763172684105,-504.13482846,0.00053424,120]
[394004143,1763172684121,-3400.85,0.00053424,2]
[394004144,1763172684138,-507.65,0.00053424,2]
[394004145,1763172684153,-500.0,0.00053424,120]
[394004146,1763172684172,-502.99888234,0.00053424,120]
[394004147,1763172684189,-566.68,0.00053424,120]
[394004148,1763172684206,-500.0,0.00053424,120]
[394004149,1763172684223,-505.46,0.00053424,120]
[394004150,1763172684238,-500.0,0.00053424,120]
[394004151,1763172684255,-503.87476177,0.00053424,120]
[394004152,1763172684271,-1174.97,0.00053424,120]
[394004153,1763172684287,-500.0,0.00053424,120]
[394004154,1763172684304,-551.68,0.00053424,120]
[394004155,1763172684320,-500.0,0.00053424,120]
[394004156,1763172684335,-566.44,0.00053424,120]
[394004157,1763172684351,-500.0,0.00053424,120]
[394004158,1763172684365,-687.74,0.00053424,120]
[394004159,1763172684380,-500.0,0.00053424,120]
[394004160,1763172684394,-501.32216095,0.00053424,120]
[394004161,1763172684555,-500.0,0.00053424,120]
[394004162,1763172684575,-500.0,0.00053424,120]
[394004163,1763172684585,-500.0,0.00053424,120]
[394004164,1763172684595,-500.0,0.00053424,120]
[394004165,1763172684607,-500.0,0.00053424,120]
[394004166,1763172684618,-500.0,0.00053424,120]
[394004167,1763172684628,-500.0,0.00053424,120]
[394004168,1763172684637,-541.33991501,0.00053424,120]
[394004169,1763172684646,-500.0,0.00053424,120]
[394004170,1763172684656,-646.85,0.00053424,120]
[394004171,1763172684665,-500.0,0.00053424,120]
[394004172,1763172684674,-502.64710631,0.00053424,120]
[394004173,1763172684684,-500.0,0.00053424,120]
[394004174,1763172684694,-500.0,0.00053424,120]
[394004175,1763172684704,-500.0,0.00053424,120]
[394004176,1763172684714,-505.25112241,0.00053424,120]
[394004177,1763172684724,-812.44,0.00053424,2]
[394004178,1763172684734,-580.02,0.00053424,120]
[394004179,1763172684744,-500.0,0.00053424,120]
[394004180,1763172684754,-757.32,0.00053424,120]
[394004181,1763172684764,-506.21,0.00053424,120]
[394004182,1763172684773,-500.0,0.00053424,120]
[394004183,1763172684782,-502.97020681,0.00053424,120]
[394004184,1763172684792,-500.0,0.00053424,120]
[394004185,1763172684800,-1011.89,0.00053424,120]
[394004186,1763172684811,-500.0,0.00053424,120]
[394004187,1763172684820,-500.0,0.00053424,120]
[394004188,1763172684830,-500.0,0.00053424,120]
[394004189,1763172684839,-875.77,0.00053424,120]
[394004190,1763172684848,-785.26,0.00053424,120]
[394004191,1763172684857,-500.0,0.00053424,120]
[394004192,1763172684866,-500.0,0.00053424,120]
[394004193,1763172684875,-829.99,0.00053424,120]
[394004194,1763172684884,-500.0,0.00053424,120]
[394004195,1763172684893,-500.0,0.00053424,120]
[394004196,1763172684904,-500.0,0.00053424,120]
[394004197,1763172684914,-500.0,0.00053424,120]
[394004198,1763172684923,-500.0,0.00053424,120]
[394004199,1763172684932,-500.0,0.00053424,120]
[394004200,1763172684941,-500.0,0.00053424,120]
[394004201,1763172684950,-500.0,0.00053424,120]
[394004202,1763172684959,-546.38,0.00053424,120]
[394004203,1763172684968,-500.0,0.00053424,120]
[394004204,1763172684977,-604.95,0.00053424,120]
[394004205,1763172684986,-709.64,0.00053424,2]
[394004206,1763172684996,-500.0,0.00053424,120]
[394004207,1763172685005,-564.94,0.00053424,120]
[394004208,1763172685014,-287.89720302,0.00053424,120]
[394004209,1763172685023,-1119.68,0.00053424,120]
[394004210,1763172685032,-500.0,0.00053424,120]
[394004211,1763172685041,-399.73839924,0.00053424,120]
[394004212,1763172685051,-500.0,0.00053424,120]
[394004213,1763172685060,-500.0,0.00053424,7]
[394004214,1763172685069,-500.0,0.00053424,120]
[394004215,1763172685079,-1259.05,0.00053424,120]
[394004216,1763172685088,-500.0,0.00053424,120]
[394004217,1763172685097,-518.35032,0.00053424,120]
[394004218,1763172685106,-955.73,0.00053424,120]
[394004219,1763172685116,-865.15,0.00053424,120]
[394004220,1763172685125,-500.00457242,0.00053424,120]
[394004221,1763172685134,-500.0,0.00053424,120]
[394004222,1763172685144,-500.0,0.00053424,120]
[394004223,1763172685154,-500.0,0.00053424,120]
[394004224,1763172685164,-500.0,0.00053424,120]
[394004225,1763172685174,-502.13286855,0.00053424,120]
[394004226,1763172685184,-500.0,0.00053424,120]
[394004227,1763172685193,-500.0,0.00053424,120]
[394004228,1763172685202,-500.0,0.00053424,120]
[394004229,1763172685211,-500.0,0.00053424,120]
[394004230,1763172685221,-500.0,0.00053424,120]
[394004231,1763172685230,-500.0,0.00053424,120]
[394004232,1763172685239,-500.0,0.00053424,120]
[394004233,1763172685249,-500.0,0.00053424,120]
[394004234,1763172685260,-500.0,0.00053424,120]
[394004235,1763172685270,-500.0,0.00053424,120]
[394004236,1763172685279,-500.0,0.00053424,120]
[394004237,1763172685287,-500.0,0.00053424,120]
[394004238,1763172685297,-500.0,0.00053424,120]
[394004239,1763172685306,-505.07566933,0.00053424,120]
[394004240,1763172685315,-776.15,0.00053424,120]
[394004241,1763172685324,-502.80686755,0.00053424,120]
[394004242,1763172685333,-500.0,0.00053424,120]
[394004243,1763172685343,-500.0,0.00053424,120]
[394004244,1763172685352,-515.28,0.00053424,120]
[394004245,1763172685361,-500.0,0.00053424,120]
[394004246,1763172685371,-500.0,0.00053424,120]
[394004247,1763172685380,-500.0,0.00053424,120]
[394004248,1763172685389,-500.0,0.00053424,120]
[394004249,1763172685398,-500.0,0.00053424,120]
[394004250,1763172685410,-500.0,0.00053424,120]
[394004251,1763172685419,-500.0,0.00053424,120]
[394004252,1763172685429,-777.19,0.00053424,120]
[394004253,1763172685438,-500.0,0.00053424,120]
[394004254,1763172685448,-500.0,0.00053424,120]
[394004255,1763172685456,-194.83244284,0.00053424,120]
[394004256,1763172685466,-500.0,0.00053424,2]
[394004257,1763172685477,-513.39058544,0.00053424,120]
[394004258,1763172685487,-500.0,0.00053424,120]
[394004259,1763172685496,-500.0,0.00053424,120]
[394004260,1763172685505,-500.0,0.00053424,120]
[394004261,1763172685515,-500.0,0.00053424,120]
[394004262,1763172685524,-172.26734204,0.00053424,2]
[394004263,1763172685533,-629.76,0.00053424,120]
[394004264,1763172685543,-646.13,0.00053424,120]
[394004265,1763172685554,-510.82544471,0.00053424,120]
[394004266,1763172685563,-500.0,0.00053424,120]
[394004267,1763172685572,-626.26,0.00053424,120]
[394004268,1763172685581,-500.0,0.00053424,120]
[394004269,1763172685590,-1152.15,0.00053424,120]
[394004270,1763172685599,-500.0,0.00053424,120]
[394004271,1763172685608,-500.0,0.00053424,120]
[394004272,1763172685617,-500.0,0.00053424,120]
[394004273,1763172685626,-1477.9,0.00053424,120]
[394004274,1763172685635,-500.0,0.00053424,120]
[394004275,1763172685645,-500.0,0.00053424,120]
[394004276,1763172685656,-500.0,0.00053424,120]
[394004277,1763172685665,-521.89059747,0.00053424,120]
[394004278,1763172685674,-564.59215333,0.00053424,120]
[394004279,1763172685683,-500.0,0.00053424,120]
[394004280,1763172685693,-500.0,0.00053424,120]
[394004281,1763172685702,-937.06,0.00053424,120]
[394004282,1763172685712,-500.0,0.00053424,120]
[394004283,1763172685721,-500.0,0.00053424,120]
[394004284,1763172685730,-1619.88,0.00053424,30]
[394004285,1763172685739,-500.0,0.00053424,120]
[394004286,1763172685748,-539.7,0.00053424,120]
[394004287,1763172685758,-500.0,0.00053424,120]
[394004288,1763172685767,-500.0,0.00053424,120]
[394004289,1763172685776,-500.0,0.00053424,120]
[394004290,1763172685785,-500.0,0.00053424,120]
[394004291,1763172685794,-500.0,0.00053424,120]
[394004292,1763172685803,-500.0,0.00053424,120]
[394004293,1763172685813,-1298.65,0.00053424,120]
[394004294,1763172685822,-500.0,0.00053424,120]
[394004295,1763172685832,-500.0,0.00053424,120]
[394004296,1763172685841,-504.07664621,0.00053424,120]
[394004297,1763172685850,-1188.94,0.00053424,120]
[394004298,1763172685859,-504.63878931,0.00053424,120]
[394004299,1763172685868,-500.0,0.00053424,120]
[394004300,1763172685877,-500.0,0.00053424,120]
[394004301,1763172685886,-502.53929649,0.00053424,120]
[394004302,1763172685895,-500.0,0.00053424,120]
[394004303,1763172685906,-574.0849879,0.00053424,120]
[394004304,1763172685916,-500.0,0.00053424,120]
[394004305,1763172685925,-500.0,0.00053424,120]
[394004306,1763172685934,-500.0,0.00053424,120]
[394004307,1763172685943,-500.0,0.00053424,120]
[394004308,1763172685952,-1000.0,0.00053424,30]
[394004309,1763172685961,-500.0,0.00053424,120]
[394004310,1763172685971,-500.0,0.00053424,120]
[394004311,1763172685980,-551.2166412,0.00053424,120]
[394004312,1763172685988,-500.0,0.00053424,120]
[394004313,1763172685997,-839.73,0.00053424,120]
[394004314,1763172686007,-500.0,0.00053424,120]
[394004315,1763172686017,-500.0,0.00053424,120]
[394004316,1763172686027,-500.0,0.00053424,120]
[394004317,1763172686036,-557.41,0.00053424,120]
[394004318,1763172686045,-500.0,0.00053424,120]
[394004319,1763172686054,-500.0,0.00053424,120]
[394004320,1763172686063,-505.97,0.00053424,120]
[394004321,1763172686072,-500.0,0.00053424,120]
[394004322,1763172686082,-520.26,0.00053424,120]
[394004323,1763172686091,-769.66,0.00053424,120]
[394004324,1763172686100,-500.0,0.00053424,120]
[394004325,1763172686109,-500.0,0.00053424,120]
[394004326,1763172686118,-500.0,0.00053424,120]
[394004327,1763172686127,-500.0,0.00053424,120]
[394004328,1763172686136,-500.0,0.00053424,120]
[394004329,1763172686145,-500.0,0.00053424,120]
[394004330,1763172686255,-500.0,0.00053424,120]
[394004331,1763172686266,-500.0,0.00053424,120]
[394004332,1763172686275,-505.4012247,0.00053424,120]
[394004333,1763172686284,-503.13004772,0.00053424,120]
[394004334,1763172686293,-500.0,0.00053424,120]
[394004335,1763172686302,-500.0,0.00053424,120]
[394004336,1763172686311,-500.0,0.00053424,120]
[394004337,1763172686321,-500.0,0.00053424,120]
[394004338,1763172686330,-500.0,0.00053424,120]